Cogmind - Beta 13 *** ADVENTURER MODE // 2024.04.09 @ 18:01:38 Player: Teromax34 Result: Self-destructed Performance ------------- Evolutions (4) 2000 Regions Visited (7) 1400 Robots Destroyed (52) 260 Value Destroyed (1867) 1867 Prototype IDs (0) 0 Alien Tech Used (0) 0 Bonus (120) 120 TOTAL SCORE: 5647 Bonus ------- Follower Combat Kills 120 Cogmind --------- Core Integrity 469/850 Matter 226/300 Energy 273/290 System Corruption 0% Temperature Hot (264) Movement Rolling (225) Ox9 Location -6/Lower Caves Parts ------- > --- POWER (1) -------- Improved Deuterium Engine > --- PROPULSION (5) --- Improved Titanium Leg Wheel Compact Wheel > --- UTILITY (5) ------ Medium Storage Unit Humpback Improved Trap Scanner Cloaking Device > --- WEAPON (4) ------- Plasma Rifle Thermic Laser Improved Light Cannon Heavy Rocket Launcher > --- INVENTORY (35) --- Medium Matter Pod (100) Improved Hacking Suite Heavy Rocket Launcher Powered Hammer Peak State ------------ > --- POWER ------------ Improved Deuterium Engine > --- PROPULSION ------- Aluminum Leg Carbon-fiber Leg Carbon-fiber Leg VSS Leg Improved Titanium Leg > --- UTILITY ---------- Power Amplifier Medium Storage Unit Kinecellerator Heavy Armor Plating > --- WEAPON ----------- Plasma Rifle Plasma Cannon Heavy Ion Cannon Minigun > --- INVENTORY -------- Improved Deuterium Engine Improved Deuterium Engine Improved Heat Sink Medium Matter Pod Improved Light Armor Plating Ion Cannon Improved Light Cannon Heavy Rocket Launcher Heavy Rocket Launcher Powered Hammer [Rating: 53] Favorites ----------- Power Improved Deuterium Engine Engine Improved Deuterium Engine Power Core Light Nuclear Core Propulsion Carbon-fiber Leg Treads Medium Treads Leg Carbon-fiber Leg Wheel Wheel Utility Medium Storage Unit Device Improved Heat Sink Storage Medium Storage Unit Protection Improved Light Armor Plating Weapon Heavy Rocket Launcher Energy Gun Plasma Rifle Energy Cannon Plasma Cannon Ballistic Gun Minigun Ballistic Cannon Improved Light Cannon Launcher Heavy Rocket Launcher Impact Weapon Powered Hammer Build | -11 -10 -10 -9 -8 -7 -6 -6 ------- Run | Yrd Mat Min Mat Mat Fac Fac Low Slots Evolved 8 | . . . 2 2 2 2 . Power . | . . . . . . . . Propulsion 3 | . . . 2 . . 1 . Utility 3 | . . . . 1 1 1 . Weapon 2 | . . . . 1 1 . . Parts Attached 64 | 6 3 2 8 9 11 6 19 Power 7 | 1 1 . 1 1 1 . 2 Engine 6 | 1 . . 1 1 1 . 2 Core 1 | . 1 . . . . . . Reactor . | . . . . . . . . Propulsion 11 | 2 . . 2 1 2 1 3 Treads 1 | . . . . . . . 1 Leg 8 | 2 . . 2 1 2 1 . Wheel 2 | . . . . . . . 2 Hover . | . . . . . . . . Flight . | . . . . . . . . Utility 19 | 1 1 1 1 2 4 4 5 Device 8 | . . . 1 2 1 1 3 Storage 3 | 1 . 1 . . . . 1 Processor . | . . . . . . . . Hackware . | . . . . . . . . Protection 8 | . 1 . . . 3 3 1 Artifact . | . . . . . . . . Weapon 27 | 2 1 1 4 5 4 1 9 Energy Gun 4 | 1 . . . . . 1 2 Energy Cannon 6 | . . . 2 1 2 . 1 Ballistic Gun 4 | 1 . 1 . 2 . . . Ballistic Cannon 4 | . . . 1 1 1 . 1 Launcher 6 | . 1 . 1 . . . 4 Special Weapon . | . . . . . . . . Impact Weapon 3 | . . . . 1 1 . 1 Slashing Weapon . | . . . . . . . . Piercing Weapon . | . . . . . . . . Special Melee Weapon . | . . . . . . . . Unidentified Prototypes . | . . . . . . . . Parts Lost 19 | . . . 2 . 1 . 16 Power 3 | . . . 1 . . . 2 Propulsion 6 | . . . . . 1 . 5 Utility 6 | . . . 1 . . . 5 Weapon 4 | . . . . . . . 4 Highest Loss Streak 9 | . . . 1 . 1 . 9 To Critical Strikes 1 | . . . . . . . 1 Average Slot Usage (%) 72 | . 98 100 86 96 98 91 54 Engine 6 | . 12 . 4 9 7 6 6 Core 1 | . 1 14 5 . . . . Leg 18 | . 28 28 32 36 29 31 8 Wheel 3 | . . . . . . . 5 Device 5 | . . . . 15 14 13 4 Storage 9 | . 14 14 11 9 7 6 8 Protection 4 | . 12 14 9 . 6 6 1 Energy Gun 4 | . 14 14 11 . . 2 3 Energy Cannon 4 | . . . 6 8 14 13 1 Ballistic Gun 4 | . 10 11 3 9 7 6 1 Ballistic Cannon 1 | . . . 1 1 . . 2 Launcher 4 | . 3 2 . . . . 6 Impact Weapon 2 | . . . . 8 7 3 2 Naked Turns . | . . . . . . . . Heaviest Build 243 | 14 18 22 26 34 55 62 243 Greatest Support 72 | 20 20 20 50 55 57 72 72 Greatest Overweight (x) 13 | 2 . 1 1 . 1 . 13 Average Overweight (x) 2 | . . . . . . . 6 Largest Inventory Capacity 35 | 8 8 10 10 10 10 10 35 Average Capacity 15 | 7 8 9 10 10 10 10 19 Most Carried 10 | 1 4 6 7 10 10 10 10 Average Carried 5 | . 2 5 4 8 8 8 4 Final Capacity 35 | 8 8 10 10 10 10 10 35 Final Carried 10 | 1 4 6 5 9 9 10 4 Class Distribution -------------------- 44% | Mutant 15% | Hauler-Mutant 13% | Scavenger-Gunner 9% | Tank 6% | Scavenger-Mutant 5% | Hauler-Skirmisher 4% | Gunner Dominant Class ---------------- Mutant | -10/Materials Mutant | -10/Mines Mutant | -9/Materials Scavenger-Mutant | -8/Materials Scavenger-Gunner | -7/Factory Gunner | -6/Factory Mutant | -6/Lower Caves Resources | -11 -10 -10 -9 -8 -7 -6 -6 ----------- Run | Yrd Mat Min Mat Mat Fac Fac Low Matter Collected 1618 | 168 160 157 86 174 205 68 600 Remotely . | . . . . . . . . Salvage Created 1662 | . 133 . 336 345 491 69 288 Parts 63 | . 10 . 21 6 13 4 9 Haulers Intercepted . | . . . . . . . . Recyclers Shooed . | . . . . . . . . Parts Field Recycled . | . . . . . . . . Retrieved Matter . | . . . . . . . . Parts Self-Destructed 6 | . . . . . . . 6 Prevented . | . . . . . . . . Kills | -11 -10 -10 -9 -8 -7 -6 -6 ------- Run | Yrd Mat Min Mat Mat Fac Fac Low Combat Hostiles Destroyed 47 | . 4 . 12 7 10 1 13 Melee 1 | . . . . 1 . . . Guns 16 | . . . 6 4 1 . 5 Cannons 16 | . . . 5 1 8 1 1 AOE 11 | . 4 . 1 . . . 6 Classes Destroyed 10 | . 3 . 3 1 1 . 2 Worker 2 | . 2 . . . . . . Builder 2 | . 2 . . . . . . Watcher 1 | . . . 1 . . . . Swarmer 14 | . . . 7 . 3 . 4 Grunt 22 | . 4 . 4 4 3 . 7 Brawler 1 | . . . . . 1 . . Duelist 1 | . . . . 1 . . . Sentry 7 | . . . 1 2 3 1 . Hunter 1 | . . . . . . . 1 Mutant 1 | . . . . . . . 1 Best Kill Streak 8 | . 8 . 7 3 3 1 4 Combat Bots Only 7 | . 4 . 7 3 3 1 4 Max Kills in Single Turn 2 | . 2 . 1 1 1 1 2 Gunslinging . | . . . . . . . . Exploded 2 | . 1 . 1 . . . 2 Melee 1 | . . . . 1 . . . Uniques/NPCs Destroyed . | . . . . . . . . Combat | -11 -10 -10 -9 -8 -7 -6 -6 -------- Run | Yrd Mat Min Mat Mat Fac Fac Low Hostile Shots Fired 358 | . 11 9 63 49 87 24 115 Missed 125 | . 5 2 22 14 40 13 29 Damage Taken 3125 | . 123 86 294 443 491 58 1630 Core 662 | . 35 16 62 75 93 . 381 Absorbed by Shields . | . . . . . . . . Ignored by Resistances 859 | . 37 26 96 128 147 23 402 Core Remaining (%) 87 | 100 . 79 84 86 86 . . Volleys Fired 122 | . 7 4 24 22 22 2 41 Largest 4 | . 2 2 2 2 3 4 4 Hottest 245 | . 80 70 106 85 170 245 245 Shots Fired 280 | . 14 8 45 44 66 8 95 Gun 129 | . 8 8 23 22 22 4 42 Cannon 121 | . . . 21 22 44 4 30 Launcher 30 | . 6 . 1 . . . 23 Special . | . . . . . . . . Kinetic 84 | . 1 4 1 22 25 2 29 Thermal 146 | . 7 4 23 22 41 6 43 Explosive 30 | . 6 . 1 . . . 23 Electromagnetic 20 | . . . 20 . . . . Robot Hit Streak 20 | . 10 18 17 20 14 11 13 Robot Miss Streak 4 | . 1 . 1 1 2 1 4 Penetration Max . | . . . . . . . . Secondary Targets . | . . . . . . . . Shots Hit Robots 210 | . 12 8 37 48 48 5 52 Core Hits 104 | . 20 . 17 11 17 2 37 Critical Kills . | . . . . . . . . Critical Parts Destroyed 4 | . . . . 3 1 . . Critical Strikes 7 | . . . 2 3 1 . 1 Burn 2 | . . . 1 . . . 1 Destroy 1 | . . . . 1 . . . Corrupt 1 | . . . 1 . . . . Smash 3 | . . . . 2 1 . . Melee Attacks 16 | . . . . 10 6 . . Impact 16 | . . . . 10 6 . . Slashing . | . . . . . . . . Piercing . | . . . . . . . . Sneak Attacks . | . . . . . . . . Combat Hostiles . | . . . . . . . . Follow-up Attacks . | . . . . . . . . Damage Inflicted 6166 | . 758 101 670 1090 1271 123 2153 Guns 1515 | . 86 101 260 328 230 43 467 Cannons 2007 | . . . 342 433 784 80 368 Explosions 2056 | . 672 . 66 . . . 1318 Melee 586 | . . . . 329 257 . . Ramming 2 | . . . 2 . . . . Kinetic 1019 | . . 50 19 328 269 20 333 Thermal 2180 | . 86 51 260 433 745 103 502 Explosive 2056 | . 672 . 66 . . . 1318 Electromagnetic 323 | . . . 323 . . . . Impact 586 | . . . . 329 257 . . Slashing . | . . . . . . . . Piercing . | . . . . . . . . Highest Corruption 1 | . . . . . 1 . . Average Corruption 1 | . . . . . 1 . . Corruption Purged . | . . . . . . . . Corruption Blocked . | . . . . . . . . Effects 1 | . . . . . 1 . . Data Loss (minor) 1 | . . . . . 1 . . Overload Shots . | . . . . . . . . Overflow Damage 275 | . 11 . 12 128 84 . 40 Projectiles 30 | . . . 12 7 9 . 2 Explosions 49 | . 11 . . . . . 38 Melee 196 | . . . . 121 75 . . Knockbacks 2 | . . . . 1 1 . . Impact 2 | . . . . 1 1 . . Kinetic . | . . . . . . . . Secondary . | . . . . . . . . Self-Inflicted Damage 355 | . 69 . . . . . 286 Shots 16 | . 5 . . . . . 11 Rammed . | . . . . . . . . Targets Rammed 1 | . . . 1 . . . . Kicked 1 | . . . 1 . . . . Crushed . | . . . . . . . . Highest Temperature 858 | . 177 174 321 . 264 282 858 Average Temperature 161 | . 92 94 136 . 73 147 282 Received Heat Transfer 714 | . 45 78 114 225 135 18 99 Effects 22 | . . . . . . 2 20 Shutdowns 4 | . . . . . . . 4 Energy Bleed 1 | . . . . . . . 1 Interference 5 | . . . . . . 2 3 Matter Decay 5 | . . . . . . . 5 Short Circuit 3 | . . . . . . . 3 Damage (minor) 2 | . . . . . . . 2 Damage (core) 2 | . . . . . . . 2 Siege Activations . | . . . . . . . . Robots Corrupted . | . . . . . . . . Combat Hostiles . | . . . . . . . . Parts Fried 7 | . . . 1 3 3 . . Impact Corruptions 10 | . . . . 6 4 . . Robots Melted . | . . . . . . . . Combat Hostiles . | . . . . . . . . Parts Melted 7 | . . . 2 . 3 1 1 Heat Transferred 4399 | . 259 148 851 703 1244 187 1007 Parts Sabotaged . | . . . . . . . . Parts Stolen . | . . . . . . . . Parts Stripped . | . . . . . . . . Power Chain Reactions . | . . . . . . . . Alert | -11 -10 -10 -9 -8 -7 -6 -6 ------- Run | Yrd Mat Min Mat Mat Fac Fac Low Peak Influence 233 | . 166 156 197 233 188 89 . Initial 54 | . . 54 . 32 12 44 . Average 72 | . 35 108 69 104 59 54 . Maximum Alert Level 1 | . . . . 1 . . . Low Security (%) 98 | 100 100 100 100 91 100 100 . Level 1 1 | . . . . 8 . . . Level 2 . | . . . . . . . . Level 3 . | . . . . . . . . Level 4 . | . . . . . . . . Level 5 . | . . . . . . . . High Security . | . . . . . . . . Max Security . | . . . . . . . . Squads Dispatched 5 | . . 1 2 . 2 . . Investigation 2 | . . . 2 . . . . Extermination 1 | . . . . . 1 . . Reinforcement 1 | . . . . . 1 . . Assault 1 | . . 1 . . . . . Garrison . | . . . . . . . . Intercept . | . . . . . . . . Searches Triggered . | . . . . . . . . Construction Impeded . | . . . . . . . . Haulers Reinforced . | . . . . . . . . Active Scanning Responses . | . . . . . . . . Cargo Convoy Interrupts . | . . . . . . . . Stealth | -11 -10 -10 -9 -8 -7 -6 -6 --------- Run | Yrd Mat Min Mat Mat Fac Fac Low Distress Signals 1 | . 1 . . . . . . Communications Jammed . | . . . . . . . . Distress Signals . | . . . . . . . . Times Spotted 69 | . 7 4 13 6 19 1 19 Peak Tracking Total 7 | . 5 2 7 4 5 1 4 Tactical Retreats 12 | . . . . . 3 . 9 Traps | -11 -10 -10 -9 -8 -7 -6 -6 ------- Run | Yrd Mat Min Mat Mat Fac Fac Low Traps Triggered 4 | . . . 2 . 2 . . Indirectly . | . . . . . . . . Trap Hack Attempts . | . . . . . . . . Triggered . | . . . . . . . . Disarmed . | . . . . . . . . Reprogrammed . | . . . . . . . . Reused . | . . . . . . . . Traps Extracted . | . . . . . . . . Installed . | . . . . . . . . Triggered 2 | . . . . . . . 2 Machines | -11 -10 -10 -9 -8 -7 -6 -6 ---------- Run | Yrd Mat Min Mat Mat Fac Fac Low Machines Disabled 3 | . . . 1 . . . 2 Max in Single Turn 1 | . . . 1 . . . 1 Machines Repaired . | . . . . . . . . Machines Dismantled . | . . . . . . . . Machines Sabotaged . | . . . . . . . . Overloaded Fab Kills . | . . . . . . . . Hacking | -11 -10 -10 -9 -8 -7 -6 -6 --------- Run | Yrd Mat Min Mat Mat Fac Fac Low Machines Accessed 1 | . 1 . . . . . . Terminals . | . . . . . . . . Fabricators . | . . . . . . . . Repair Stations . | . . . . . . . . Recycling Units 1 | . 1 . . . . . . Scanalyzers . | . . . . . . . . Garrison Access . | . . . . . . . . Total Hacks 1 | . 1 . . . . . . Successful 1 | . 1 . . . . . . Failed . | . . . . . . . . Catastrophic . | . . . . . . . . Database Lockouts . | . . . . . . . . Manual . | . . . . . . . . Terminals . | . . . . . . . . Fabricators . | . . . . . . . . Repair Stations . | . . . . . . . . Recycling Units 1 | . 1 . . . . . . Scanalyzers . | . . . . . . . . Garrison Access . | . . . . . . . . Terminal Hacks . | . . . . . . . . Fabricator Hacks . | . . . . . . . . Repair Station Hacks . | . . . . . . . . Recycling Unit Hacks 1 | . 1 . . . . . . Retrieve Components 1 | . 1 . . . . . . Scanalyzer . | . . . . . . . . Garrison Access Hacks . | . . . . . . . . Unauthorized Hacks . | . . . . . . . . Terminals . | . . . . . . . . Fabricators . | . . . . . . . . Repair Stations . | . . . . . . . . Recycling Units . | . . . . . . . . Scanalyzers . | . . . . . . . . Garrison Access . | . . . . . . . . Data Cores Recovered . | . . . . . . . . Used . | . . . . . . . . Hacking Detections . | . . . . . . . . Full Trace Events . | . . . . . . . . Feedback Events . | . . . . . . . . Feedback Blocked . | . . . . . . . . Robot Schematics Acquired . | . . . . . . . . Robots Built . | . . . . . . . . Authchips . | . . . . . . . . Time . | . . . . . . . . Total Robot Build Rating . | . . . . . . . . Part Schematics Acquired . | . . . . . . . . Parts Built . | . . . . . . . . Authchips . | . . . . . . . . Time . | . . . . . . . . Total Part Build Rating . | . . . . . . . . Parts Repaired . | . . . . . . . . Time . | . . . . . . . . Parts Recycled . | . . . . . . . . Recycled Matter . | . . . . . . . . Retrieved Matter . | . . . . . . . . Retrieved Components 3 | . 3 . . . . . . Parts Scanalyzed . | . . . . . . . . Part Schematics Acquired . | . . . . . . . . Parts Damaged . | . . . . . . . . Bothacking | -11 -10 -10 -9 -8 -7 -6 -6 ------------ Run | Yrd Mat Min Mat Mat Fac Fac Low Used RIF Installer . | . . . . . . . . Robots Hacked . | . . . . . . . . Non-combat . | . . . . . . . . Combat . | . . . . . . . . Robot Hacks Applied . | . . . . . . . . Relay Couplers Released . | . . . . . . . . Fabnet Peak Effective % . | . . . . . . . . Robots Rewired . | . . . . . . . . Allies Hacked . | . . . . . . . . Hacks Repelled . | . . . . . . . . Allies | -11 -10 -10 -9 -8 -7 -6 -6 -------- Run | Yrd Mat Min Mat Mat Fac Fac Low Total Allies 1 | . . 1 . . . . . Largest Group 1 | . . 1 1 . . . . Highest-Rated Group 31 | . . 31 31 . . . . Highest-Rated Ally 31 | . . 31 31 . . . . Total Orders . | . . . . . . . . Ally Attacks 20 | . . 16 4 . . . . Total Damage 308 | . . 288 20 . . . . Kills 4 | . . 4 . . . . . Allies Corrupted . | . . . . . . . . Allies Melted . | . . . . . . . . Intel | -11 -10 -10 -9 -8 -7 -6 -6 ------- Run | Yrd Mat Min Mat Mat Fac Fac Low Robot Analysis Total . | . . . . . . . . Derelict Logs Recovered 3 | . . 2 . . . . 1 Drone Launches . | . . . . . . . . Drone Recoveries . | . . . . . . . . Exploration | -11 -10 -10 -9 -8 -7 -6 -6 ------------- Run | Yrd Mat Min Mat Mat Fac Fac Low Turns Passed 6203 | 68 247 457 501 408 868 216 3438 Spaces Moved 3063 | 51 174 262 271 229 639 172 1265 Core 246 | 8 . . . . . . 238 Treads 17 | . . . . . . . 17 Legs 1907 | 43 174 262 271 229 639 172 117 Wheels 893 | . . . . . . . 893 Hover . | . . . . . . . . Flight . | . . . . . . . . Fastest Speed 50 | 50 120 120 120 120 112 112 105 Average Speed 183 | 114 120 165 150 120 116 114 260 Slowest Speed 700 | 150 120 190 190 120 186 116 700 Overloaded Moves . | . . . . . . . . Propulsion Burnouts . | . . . . . . . . Robots Hopped . | . . . . . . . . Cave-ins Triggered . | . . . . . . . . Exploration Rate (%) 29 | 3 25 52 22 21 14 5 93 Regions Visited 7 Branch Regions 2 Pre-discovered Areas 1 | . . 1 . . . . . Known Exits Taken . | . . . . . . . . Unknown Exits Taken 7 | 1 1 1 1 1 1 1 . Scrap Searched 4 | . . 1 . . . . 3 Spaces Dug 40 | . . . . . . . 40 Terrain Destroyed 294 | . 26 . 5 1 2 . 260 Melee . | . . . . . . . . Projectile 3 | . . . . 1 2 . . AOE 291 | . 26 . 5 . . . 260 Terrain Rammed . | . . . . . . . . Walls Destroyed . | . . . . . . . . Machines Disabled . | . . . . . . . . Actions | -11 -10 -10 -9 -8 -7 -6 -6 --------- Run | Yrd Mat Min Mat Mat Fac Fac Low Total 3375 | 57 196 276 318 305 705 186 1332 Wait 56 | . 10 7 4 15 20 . . Move 3056 | 50 173 261 270 228 638 171 1265 Hop . | . . . . . . . . Pick Up 34 | 1 3 2 5 13 4 3 3 Fast Attach 23 | 6 1 . 4 . 5 1 6 Attach 19 | . . . . 2 3 3 11 Detach 7 | . . . . . 1 3 3 Swap 22 | . 2 2 4 7 3 2 2 Drop 19 | . . . 6 8 3 1 1 Fire 122 | . 7 4 24 22 22 2 41 Melee 16 | . . . . 10 6 . . Ram . | . . . . . . . . Kick 1 | . . . 1 . . . . Crush . | . . . . . . . . Escape Stasis . | . . . . . . . . Rewire . | . . . . . . . . Trap . | . . . . . . . . Miscellaneous . | . . . . . . . . Route ------- -11/Scrapyard -10/Materials -10/Mines -9/Materials (discovered 2 exits: *Mat / Min) -8/Materials -7/Factory -6/Factory -6/Lower Caves History --------- Turn | Location | Event 7 | -11/Scrapyard | Discovered new exit (range 15) 69 | -11/Scrapyard | Entered Materials 256 | -10/Materials | Discovered new exit (range 7) 306 | -10/Materials | Build established: Mutant 316 | -10/Materials | Entered Mines 317 | -10/Mines | Met a Derelict testing a Signal Generator 426 | -10/Mines | Learned location of Zion (-7) 460 | -10/Mines | Learned location of 1 exit from Materials 721 | -10/Mines | Discovered new exit (range 15) 773 | -10/Mines | Entered Materials 773 | -9/Materials | Accompanied by 1 ally 773 | -9/Materials | Evolved 2 slots: Propulsion x2 774 | -9/Materials | Identified exit to Mines 1054 | -9/Materials | Destroyed 7 combat bots 1126 | -9/Materials | Discovered new exit (range 8) 1274 | -9/Materials | Entered another Materials area 1274 | -8/Materials | Evolved 2 slots: Utility x1, Weapon x1 1612 | -8/Materials | Build established: Scavenger-Mutant 1632 | -8/Materials | Discovered new exit (range 15) 1682 | -8/Materials | Entered Factory 1682 | -7/Factory | Evolved 2 slots: Utility x1, Weapon x1 2076 | -7/Factory | Build established: Scavenger-Gunner 2543 | -7/Factory | Discovered new exit (range 5) 2550 | -7/Factory | Entered another Factory area 2550 | -6/Factory | Evolved 2 slots: Propulsion x1, Utility x1 2706 | -6/Factory | Discovered new exit (range 10) 2766 | -6/Factory | Entered Lower Caves 2981 | -6/Lower Caves | Lost 9 parts (1p3n3u2w) 3192 | -6/Lower Caves | Build established: Tank 3236 | -6/Lower Caves | Lost 3 parts (1n1u1w) 3272 | -6/Lower Caves | Learned Factory garrison access intel 3410 | -6/Lower Caves | Lost 4 parts (1p1n1u1w) 3679 | -6/Lower Caves | Build established: Mutant 4674 | -6/Lower Caves | Encountered a Warlord checkpoint 5160 | -6/Lower Caves | Build established: Hauler-Mutant 6124 | -6/Lower Caves | Build established: Hauler-Skirmisher 6197 | -6/Lower Caves | Attacked by a delusional Derelict stockpiling parts 6204 | -6/Lower Caves | Self-destructed Last Messages --------------- Acquired 1 matter. Acquired 3 matter. Acquired 2 matter. Acquired 3 matter. Acquired 1 matter. Acquired 3 matter. Acquired 1 matter. Searching scrap... Found Imp. Hacking Suite. Found 24 Matter. Acquired Imp. Hacking Suite. Machine disabled. I9-X44(M): "This is MY stuff!" Locked Door breached. I9-X44(M) suffers critical hit (Burn). Destroyed Enh. Flamer. The unstable cave ceiling collapses. I9-X44(M) destroyed. The unstable cave ceiling collapses. [Achievement: 5k Club] Map ----- +----------------------------------------------------+ | | | | | | | | | | | | | ?????????????????????????????????????????????????? | | ?????????????????????????????????????????????????? | | ?????????????????????????????????????????????????? | | ?????????????????????????????????????????????????? | | ?????????????????????????????????????????????????? | | ?????????????????????????????????????????????????? | | ??????????????????????????######?????????????????? | | ?????????????????????????# ##????????????????? | | ????????????????????????? #????????????????? | | ???????????????????????## #????????????????? | | ???????????????????????#] [] #????????????????? | | ???????????????????????#/ #????????????????? | | ???????????????????????#] %= ##???????????????? | | ??????????????????????## = #???????????????? | | ?????????????????????## # #????????????????? | | ???????????????####### #????????????????# | | ???????????????# % # ##????????######?## | | ???????????????## ##??????#" "### | | ??????????????# #### #??????# " ## | | ?????????????# ??## @ ## #??????# #=# | | ?????????????# ????## ## ###????## % | | ????????????# ??????## ## ### ##### # # | | ????????????# ????????# ### ### ## # | | | ???????????# ???????## #?# ## | | ???????????# ????????# ### ### | | ???????????# ?????????# ## #### % | | ???????????#??????????# #?##### # | | ?????????????????????## #### #????###%# | | ????????????????????## ##??###??### #%% | | ????????????????????# #??????## #### | | ????????????????????# ## #????### ## | | ????????????????? ?# ##???## % # | | ?????????????? ?# ##???## ### | | ???????????????### # ?## #???## ##?## | | ????????????????# ##### ##### ##??# ###### | | ????????????????# #?## #???#%# ## | | ???????????????## #?## #???### ###% | | ??????????????## #?## ## ###?????### | | ??????????????# #??# ## #?????????# | | ???????????????# #?## ## #?????????## # | | ????????????????# ## ###?????????# | | ?????????????????# ###???????????## | | ?????????????????# #######?????????## ## | | ?????????????????# ## #???????? #%# | +----------------------------------------------------+ Best States ------------- Heat Dissipation 62 Energy Generation 18 Energy Capacity 290 Matter Stores 300 Matter Capacity 300 Sight Range 16 Terrain Scan Density 10 Cloak Strength 2 Power Amplification 20 Armor Coverage 600 Resistance: KI 20 Resistance: TH 20 Resistance: EX 20 Resistance: EM 20 Resistance: I 20 Resistance: S 20 Resistance: P 20 Evasion (%) 55 Recoil Reduction 1 Kinecelleration 30 Offensive Hacking 10 Item Schematics ----------------- None Robot Schematics ------------------ None Fabricated ------------ Nothing Alien Tech Used ----------------- None Achievements -------------- 5k Club Serviceable Loadout Tank Challenges ------------ None Game ------ Seed ActiveProtonLink Manual? 0 Play Time 00:45:57 Cumulative 1.2 hours Start 2024.04.08 @ 17:12:12 End 2024.04.09 @ 18:01:38 Sessions 3 Manual Loads 0 Difficulty Adventurer Special Mode None Game No. 4 Rogue 0 Adventurer 4 Explorer 0 Win Type - Total 0 Types 0/0/0/0/0/0/0/0/0 Lore% 0 Gallery% 6 Achievement% 6 Wizard Run 0 Options --------- Layout 1 ASCII 0 Keyboard 0 Movement Arrows Keybinds 0 Fullscreen 1 Font 20/SmallcapsGlow Map View 50x35 Zoom Use 0% Tactical HUD 0 Map Filters NONE Filters NONE Steam 1 RUN: c5b5aafb-28c1-4d94-85f6-a8c8fc2dd1b0